[Event "*** SCC Grand Prix: Titled Tuesday Blitz"]
[Site "Chess.com"]
[Date "2020.10.06"]
[Round "8"]
[White "UCantHandleDenker"]
[Black "vladgoncharov"]
[Result "0-1"]
[WhiteElo "2552"]
[BlackElo "2464"]
[TimeControl "180+1"]
[EndTime "11:36:56 PDT"]
[Termination "vladgoncharov won on time"]

1. Nf3 {[%clk 0:02:59.2]} 1... Nf6 {[%clk 0:02:20.3]} 2. g3 {[%clk 0:02:57.7]}
2... g6 {[%clk 0:02:20.7]} 3. Bg2 {[%clk 0:02:57.9]} 3... Bg7 {[%clk 0:02:21.2]}
4. O-O {[%clk 0:02:58.8]} 4... O-O {[%clk 0:02:21.7]} 5. d3 {[%clk 0:02:59.7]}
5... d6 {[%clk 0:02:22.3]} 6. Nbd2 {[%clk 0:02:59.8]} 6... c5 {[%clk 0:02:22.9]}
7. e4 {[%clk 0:03:00.1]} 7... Nc6 {[%clk 0:02:23.5]} 8. Re1 {[%clk 0:03:00.6]}
8... Bg4 {[%clk 0:02:23.9]} 9. h3 {[%clk 0:03:00.2]} 9... Bxf3 {[%clk
0:02:24.2]} 10. Nxf3 {[%clk 0:03:01.1]} 10... Nd7 {[%clk 0:02:23.8]} 11. c3
{[%clk 0:02:56]} 11... Rb8 {[%clk 0:02:20.7]} 12. a4 {[%clk 0:02:55.5]} 12... a6
{[%clk 0:02:20.2]} 13. d4 {[%clk 0:02:51.6]} 13... cxd4 {[%clk 0:02:20.2]} 14.
cxd4 {[%clk 0:02:51.4]} 14... a5 {[%clk 0:02:17.6]} 15. Be3 {[%clk 0:02:21.8]}
15... Nb4 {[%clk 0:02:17.1]} 16. Qd2 {[%clk 0:02:15.8]} 16... Qb6 {[%clk
0:02:15.3]} 17. e5 {[%clk 0:02:07.9]} 17... d5 {[%clk 0:02:09.5]} 18. Bh6 {[%clk
0:01:55.1]} 18... Rfc8 {[%clk 0:02:05.6]} 19. Bxg7 {[%clk 0:01:48.6]} 19... Kxg7
{[%clk 0:02:05.4]} 20. e6 {[%clk 0:01:29]} 20... fxe6 {[%clk 0:02:00.5]} 21. Ng5
{[%clk 0:01:29.4]} 21... Nf8 {[%clk 0:02:00.1]} 22. Qf4 {[%clk 0:01:27.4]} 22...
Rc6 {[%clk 0:01:39.8]} 23. Qf7+ {[%clk 0:01:03.9]} 23... Kh8 {[%clk 0:01:39.6]}
24. Qxe7 {[%clk 0:01:04.3]} 24... Kg8 {[%clk 0:01:37.6]} 25. Rad1 {[%clk
0:00:45]} 25... Rc7 {[%clk 0:01:17.7]} 26. Qf6 {[%clk 0:00:44]} 26... Re8 {[%clk
0:01:14.2]} 27. Re3 {[%clk 0:00:26.3]} 27... h6 {[%clk 0:01:09.8]} 28. Nf3
{[%clk 0:00:22.7]} 28... Rf7 {[%clk 0:01:09.3]} 29. Qh4 {[%clk 0:00:22.7]} 29...
Kg7 {[%clk 0:01:06.9]} 30. Rde1 {[%clk 0:00:21.4]} 30... Nc2 {[%clk 0:00:56.3]}
31. Ne5 {[%clk 0:00:20.3]} 31... Rf5 {[%clk 0:00:48.9]} 32. g4 {[%clk
0:00:13.7]} 32... g5 {[%clk 0:00:38.4]} 33. Qg3 {[%clk 0:00:12.7]} 33... Rf4
{[%clk 0:00:37]} 34. Nd3 {[%clk 0:00:07]} 34... Nxe3 {[%clk 0:00:27.4]} 35. fxe3
{[%clk 0:00:05.4]} 35... Rf6 {[%clk 0:00:24.1]} 36. Qe5 {[%clk 0:00:05]} 36...
Ng6 {[%clk 0:00:23]} 37. Qg3 {[%clk 0:00:05.2]} 37... Ref8 {[%clk 0:00:22.5]}
38. Ne5 {[%clk 0:00:04.2]} 38... Nxe5 {[%clk 0:00:21.8]} 39. Qxe5 {[%clk
0:00:05.1]} 39... Rf7 {[%clk 0:00:20]} 40. h4 {[%clk 0:00:04.7]} 40... gxh4
{[%clk 0:00:19.5]} 41. Kh2 {[%clk 0:00:04.6]} 41... Qc7 {[%clk 0:00:18.7]} 42.
Kh3 {[%clk 0:00:05.1]} 42... Qxe5 {[%clk 0:00:18.3]} 43. dxe5 {[%clk 0:00:06]}
43... Rf2 {[%clk 0:00:17.7]} 44. Rg1 {[%clk 0:00:05.6]} 44... Rxb2 {[%clk
0:00:17]} 45. Kxh4 {[%clk 0:00:06.5]} 45... Rb4 {[%clk 0:00:16.8]} 46. Bh3
{[%clk 0:00:06.5]} 46... Rf3 {[%clk 0:00:16.3]} 47. Bg2 {[%clk 0:00:05.3]} 47...
Rxe3 {[%clk 0:00:16.2]} 48. Bh3 {[%clk 0:00:05.3]} 48... Rxe5 {[%clk 0:00:16.1]}
49. Rf1 {[%clk 0:00:04.3]} 49... Ree4 {[%clk 0:00:15.4]} 50. Rc1 {[%clk
0:00:05.2]} 50... Rec4 {[%clk 0:00:14.9]} 51. Re1 {[%clk 0:00:05.3]} 51... Kf6
{[%clk 0:00:13.7]} 52. Rf1+ {[%clk 0:00:05.6]} 52... Ke7 {[%clk 0:00:13.4]} 53.
Kh5 {[%clk 0:00:06.4]} 53... Rxa4 {[%clk 0:00:13.1]} 54. Kxh6 {[%clk 0:00:06.4]}
54... Rxg4 {[%clk 0:00:13.2]} 55. Re1 {[%clk 0:00:05]} 55... Rh4+ {[%clk
0:00:12.4]} 56. Kg5 {[%clk 0:00:05.4]} 56... Rxh3 {[%clk 0:00:12.8]} 57. Rf1
{[%clk 0:00:05.7]} 57... Rb3 {[%clk 0:00:13.1]} 58. Kh5 {[%clk 0:00:05.4]} 58...
Kd6 {[%clk 0:00:13.7]} 59. Rg1 {[%clk 0:00:05.2]} 59... Rb2 {[%clk 0:00:13.9]}
60. Rg6 {[%clk 0:00:04.5]} 60... Ra3 {[%clk 0:00:13.5]} 61. Kh6 {[%clk
0:00:04.8]} 61... Rh3+ {[%clk 0:00:13]} 62. Kg7 {[%clk 0:00:05.7]} 62... Rhh2
{[%clk 0:00:13.1]} 63. Kf7 {[%clk 0:00:06.1]} 63... Rbe2 {[%clk 0:00:13.5]} 64.
Ke8 {[%clk 0:00:05.8]} 64... b5 {[%clk 0:00:13.4]} 65. Rg8 {[%clk 0:00:04.7]}
65... b4 {[%clk 0:00:13.2]} 66. Kd8 {[%clk 0:00:05.6]} 66... b3 {[%clk
0:00:12.8]} 67. Kc8 {[%clk 0:00:04.5]} 67... b2 {[%clk 0:00:13.1]} 68. Rd8+
{[%clk 0:00:04.9]} 68... Ke5 {[%clk 0:00:13.4]} 0-1

[Event "*** SCC Grand Prix: Titled Tuesday Blitz"]
[Site "Chess.com"]
[Date "2020.10.06"]
[Round "8"]
[White "Colombiano07"]
[Black "WiktoriaPOL"]
[Result "0-1"]
[WhiteElo "2292"]
[BlackElo "2062"]
[TimeControl "180+1"]
[EndTime "11:37:04 PDT"]
[Termination "WiktoriaPOL won by checkmate"]

1. d4 {[%clk 0:03:00.9]} 1... Nf6 {[%clk 0:02:59.6]} 2. Nc3 {[%clk 0:03:00.2]}
2... g6 {[%clk 0:02:59.3]} 3. e4 {[%clk 0:02:57]} 3... d6 {[%clk 0:02:56.7]} 4.
Nf3 {[%clk 0:02:57.2]} 4... Bg7 {[%clk 0:02:56.5]} 5. h3 {[%clk 0:02:56.8]} 5...
O-O {[%clk 0:02:55.9]} 6. Be3 {[%clk 0:02:57.5]} 6... e5 {[%clk 0:02:53.8]} 7.
dxe5 {[%clk 0:02:56.9]} 7... dxe5 {[%clk 0:02:53.3]} 8. Qxd8 {[%clk 0:02:57.8]}
8... Rxd8 {[%clk 0:02:53.1]} 9. Nxe5 {[%clk 0:02:58.7]} 9... Nxe4 {[%clk
0:02:52.9]} 10. Nxe4 {[%clk 0:02:54.5]} 10... Bxe5 {[%clk 0:02:52.5]} 11. c3
{[%clk 0:02:55.3]} 11... Bf5 {[%clk 0:02:51.1]} 12. Nc5 {[%clk 0:02:53.3]} 12...
b6 {[%clk 0:02:48.4]} 13. Nb3 {[%clk 0:02:53.5]} 13... Nc6 {[%clk 0:02:43.7]}
14. Be2 {[%clk 0:02:35.1]} 14... a5 {[%clk 0:02:41.6]} 15. Bf3 {[%clk
0:02:34.6]} 15... Rd6 {[%clk 0:02:35.1]} 16. Rd1 {[%clk 0:02:31.4]} 16... Rad8
{[%clk 0:02:32]} 17. Rxd6 {[%clk 0:02:30.9]} 17... Rxd6 {[%clk 0:02:31.8]} 18.
O-O {[%clk 0:02:03.7]} 18... a4 {[%clk 0:02:23.7]} 19. Nd2 {[%clk 0:02:03.6]}
19... Bd3 {[%clk 0:02:19.6]} 20. Re1 {[%clk 0:02:02.7]} 20... f6 {[%clk
0:01:34.3]} 21. Be4 {[%clk 0:01:56]} 21... Bxe4 {[%clk 0:01:31.9]} 22. Nxe4
{[%clk 0:01:56.9]} 22... Rd3 {[%clk 0:01:24.8]} 23. Kf1 {[%clk 0:01:55]} 23...
a3 {[%clk 0:01:22.8]} 24. bxa3 {[%clk 0:01:47.4]} 24... f5 {[%clk 0:01:17.7]}
25. Nd2 {[%clk 0:01:39.3]} 25... Rxc3 {[%clk 0:01:16.1]} 26. Ke2 {[%clk
0:01:40.2]} 26... Rxa3 {[%clk 0:01:13.5]} 27. Nc4 {[%clk 0:01:39.5]} 27... Rxa2+
{[%clk 0:01:13.4]} 28. Kf3 {[%clk 0:01:40.4]} 28... b5 {[%clk 0:01:09.5]} 29.
Nxe5 {[%clk 0:01:35.4]} 29... Nxe5+ {[%clk 0:01:09.3]} 30. Kg3 {[%clk
0:01:36.3]} 30... Nc4 {[%clk 0:01:00.9]} 31. Bh6 {[%clk 0:01:33.8]} 31... Kf7
{[%clk 0:00:59.1]} 32. Bg5 {[%clk 0:01:29.5]} 32... Ra3+ {[%clk 0:00:51.5]} 33.
f3 {[%clk 0:01:26.3]} 33... h6 {[%clk 0:00:36.6]} 34. Re7+ {[%clk 0:01:23.9]}
34... Kf8 {[%clk 0:00:35.6]} 35. Bf6 {[%clk 0:01:24.5]} 35... c5 {[%clk
0:00:31.2]} 36. Rc7 {[%clk 0:01:21.6]} 36... Nd2 {[%clk 0:00:13.3]} 37. Be7+
{[%clk 0:01:20.7]} 37... Ke8 {[%clk 0:00:12.9]} 38. Bxc5 {[%clk 0:01:19.7]}
38... Rc3 {[%clk 0:00:12.1]} 39. Re7+ {[%clk 0:01:14.8]} 39... Kd8 {[%clk
0:00:10.5]} 40. Re5 {[%clk 0:01:09.2]} 40... Ne4+ {[%clk 0:00:09.4]} 41. Kf4
{[%clk 0:00:35.7]} 41... Nxc5 {[%clk 0:00:07.7]} 42. Rd5+ {[%clk 0:00:33.7]}
42... Kc7 {[%clk 0:00:07.2]} 43. g4 {[%clk 0:00:34]} 43... b4 {[%clk 0:00:06.7]}
44. gxf5 {[%clk 0:00:33.1]} 44... gxf5 {[%clk 0:00:06.5]} 45. Rxf5 {[%clk
0:00:34]} 45... b3 {[%clk 0:00:06.4]} 46. Rf7+ {[%clk 0:00:34.2]} 46... Kc6
{[%clk 0:00:05.6]} 47. Rf6+ {[%clk 0:00:31.8]} 47... Kb5 {[%clk 0:00:06]} 48.
Rf8 {[%clk 0:00:31.1]} 48... Kb6 {[%clk 0:00:05.3]} 49. Rf6+ {[%clk 0:00:30.9]}
49... Ka7 {[%clk 0:00:04.1]} 50. Rf7+ {[%clk 0:00:28.1]} 50... Nb7 {[%clk
0:00:04.1]} 51. Rf5 {[%clk 0:00:24]} 51... Rc4+ {[%clk 0:00:04.2]} 52. Kg3
{[%clk 0:00:23.3]} 52... Rb4 {[%clk 0:00:04.3]} 53. Re5 {[%clk 0:00:22.3]} 53...
b2 {[%clk 0:00:04.5]} 54. Re1 {[%clk 0:00:23.2]} 54... b1=Q {[%clk 0:00:04.7]}
55. Rxb1 {[%clk 0:00:24.1]} 55... Rxb1 {[%clk 0:00:05]} 56. Kg4 {[%clk 0:00:25]}
56... Rb5 {[%clk 0:00:04.9]} 57. f4 {[%clk 0:00:20.7]} 57... Nd6 {[%clk
0:00:05.1]} 58. f5 {[%clk 0:00:21.6]} 58... Rxf5 {[%clk 0:00:04.5]} 59. h4
{[%clk 0:00:22.5]} 59... Re5 {[%clk 0:00:04.7]} 60. h5 {[%clk 0:00:23.4]} 60...
Re4+ {[%clk 0:00:04.7]} 61. Kf3 {[%clk 0:00:23.2]} 61... Rd4 {[%clk 0:00:04.5]}
62. Kg3 {[%clk 0:00:24.1]} 62... Rc4 {[%clk 0:00:04]} 63. Kf3 {[%clk 0:00:25]}
63... Kb6 {[%clk 0:00:04]} 64. Kg3 {[%clk 0:00:25.9]} 64... Kc5 {[%clk
0:00:04.2]} 65. Kf3 {[%clk 0:00:22.9]} 65... Kd5 {[%clk 0:00:04.7]} 66. Kg3
{[%clk 0:00:23.5]} 66... Ke5 {[%clk 0:00:04.9]} 67. Kf3 {[%clk 0:00:24.4]} 67...
Kf5 {[%clk 0:00:04.8]} 68. Kg3 {[%clk 0:00:25.3]} 68... Rc3+ {[%clk 0:00:04.7]}
69. Kh4 {[%clk 0:00:25.2]} 69... Rc4+ {[%clk 0:00:03.9]} 70. Kh3 {[%clk
0:00:25.2]} 70... Ne4 {[%clk 0:00:03.6]} 71. Kh4 {[%clk 0:00:25.3]} 71... Nf6+
{[%clk 0:00:03.1]} 72. Kh3 {[%clk 0:00:25.6]} 72... Nxh5 {[%clk 0:00:03.2]} 73.
Kg2 {[%clk 0:00:24.8]} 73... Nf4+ {[%clk 0:00:02.9]} 74. Kf2 {[%clk 0:00:25.7]}
74... Rc2+ {[%clk 0:00:02.7]} 75. Kg3 {[%clk 0:00:25.9]} 75... Rc3+ {[%clk
0:00:02.6]} 76. Kh4 {[%clk 0:00:26.2]} 76... Rh3# {[%clk 0:00:02.2]} 0-1

[Event "*** SCC Grand Prix: Titled Tuesday Blitz"]
[Site "Chess.com"]
[Date "2020.10.06"]
[Round "8"]
[White "boasovietica"]
[Black "serena-maria"]
[Result "0-1"]
[WhiteElo "2440"]
[BlackElo "2309"]
[TimeControl "180+1"]
[EndTime "11:37:09 PDT"]
[Termination "serena-maria won by resignation"]

1. e4 {[%clk 0:03:00.9]} 1... c5 {[%clk 0:02:59.2]} 2. Nf3 {[%clk 0:02:59.6]}
2... d6 {[%clk 0:02:59.5]} 3. d4 {[%clk 0:02:59.4]} 3... cxd4 {[%clk 0:03:00.4]}
4. Nxd4 {[%clk 0:03:00.3]} 4... Nf6 {[%clk 0:03:01]} 5. Nc3 {[%clk 0:03:00.7]}
5... g6 {[%clk 0:03:01.6]} 6. Be2 {[%clk 0:02:49.7]} 6... Bg7 {[%clk 0:03:01.5]}
7. O-O {[%clk 0:02:49.3]} 7... O-O {[%clk 0:03:02.2]} 8. Bg5 {[%clk 0:02:49.7]}
8... Nc6 {[%clk 0:03:01.8]} 9. Nb3 {[%clk 0:02:49.6]} 9... Be6 {[%clk 0:02:55]}
10. Kh1 {[%clk 0:02:49.4]} 10... Qc8 {[%clk 0:02:55.3]} 11. f4 {[%clk
0:02:45.8]} 11... Rd8 {[%clk 0:02:55.7]} 12. Qe1 {[%clk 0:02:32.8]} 12... d5
{[%clk 0:02:52.7]} 13. exd5 {[%clk 0:01:57.2]} 13... Nxd5 {[%clk 0:02:47.8]} 14.
Nxd5 {[%clk 0:01:35.8]} 14... Bxd5 {[%clk 0:02:48.7]} 15. c3 {[%clk 0:01:33.6]}
15... h6 {[%clk 0:02:29.5]} 16. Bh4 {[%clk 0:01:22.8]} 16... Qh3 {[%clk
0:02:29.8]} 17. Bf3 {[%clk 0:01:16.1]} 17... Qf5 {[%clk 0:02:06.4]} 18. Bxd5
{[%clk 0:01:08.4]} 18... Qxd5 {[%clk 0:02:06]} 19. Rd1 {[%clk 0:01:03.4]} 19...
Qb5 {[%clk 0:01:43.9]} 20. f5 {[%clk 0:00:50.6]} 20... Rxd1 {[%clk 0:01:34.3]}
21. Qxd1 {[%clk 0:00:51.5]} 21... Rd8 {[%clk 0:01:34.2]} 22. Qe1 {[%clk
0:00:31.3]} 22... gxf5 {[%clk 0:01:15.9]} 23. h3 {[%clk 0:00:31.4]} 23... Rd3
{[%clk 0:01:04.5]} 24. Qf2 {[%clk 0:00:22.6]} 24... e6 {[%clk 0:01:02.2]} 25.
Bg3 {[%clk 0:00:10.2]} 25... Qd5 {[%clk 0:00:48.5]} 26. Kh2 {[%clk 0:00:09.1]}
26... b6 {[%clk 0:00:46.8]} 27. Re1 {[%clk 0:00:06.1]} 27... Bf6 {[%clk
0:00:38.2]} 28. Re2 {[%clk 0:00:05.8]} 28... Kg7 {[%clk 0:00:37.6]} 29. Nd2
{[%clk 0:00:05.7]} 29... Kh7 {[%clk 0:00:30.9]} 30. Nf3 {[%clk 0:00:06]} 30...
Qxa2 {[%clk 0:00:28.4]} 31. Bf4 {[%clk 0:00:05.5]} 31... Qd5 {[%clk 0:00:26.5]}
32. Qg3 {[%clk 0:00:05.4]} 32... Ne7 {[%clk 0:00:23.4]} 33. Be5 {[%clk
0:00:03.1]} 33... Bg5 {[%clk 0:00:15.5]} 34. Nxg5+ {[%clk 0:00:02.7]} 34... hxg5
{[%clk 0:00:14.3]} 35. Qxg5 {[%clk 0:00:03.2]} 35... Ng6 {[%clk 0:00:13.2]} 36.
Qh5+ {[%clk 0:00:03.6]} 36... Kg8 {[%clk 0:00:13.4]} 37. Bd4 {[%clk 0:00:04.1]}
37... e5 {[%clk 0:00:12.4]} 38. Bf2 {[%clk 0:00:03.7]} 38... f4 {[%clk
0:00:11.8]} 39. Bh4 {[%clk 0:00:03.8]} 39... Rd2 {[%clk 0:00:09.3]} 40. Bf6
{[%clk 0:00:03.3]} 40... Rxe2 {[%clk 0:00:08.1]} 41. Qxe2 {[%clk 0:00:04.2]}
41... Qe6 {[%clk 0:00:07.4]} 42. Bg5 {[%clk 0:00:04.2]} 42... f6 {[%clk
0:00:07]} 43. Qe1 {[%clk 0:00:04.5]} 43... fxg5 {[%clk 0:00:07]} 44. Qe4 {[%clk
0:00:04.8]} 44... g4 {[%clk 0:00:06.5]} 45. Qa8+ {[%clk 0:00:04.7]} 45... Kg7
{[%clk 0:00:06.5]} 46. hxg4 {[%clk 0:00:05.3]} 46... Qxg4 {[%clk 0:00:06.4]} 47.
Qxa7+ {[%clk 0:00:05.9]} 47... Kh6 {[%clk 0:00:06.9]} 48. Qxb6 {[%clk
0:00:06.5]} 48... Qh4+ {[%clk 0:00:07.2]} 49. Kg1 {[%clk 0:00:06.9]} 49... Qe1+
{[%clk 0:00:08.1]} 50. Kh2 {[%clk 0:00:07.5]} 50... Qg3+ {[%clk 0:00:09]} 51.
Kh1 {[%clk 0:00:07.7]} 51... f3 {[%clk 0:00:07.8]} 52. gxf3 {[%clk 0:00:07.9]}
52... Qxf3+ {[%clk 0:00:08.7]} 53. Kg1 {[%clk 0:00:08.4]} 53... Qg3+ {[%clk
0:00:08.1]} 54. Kf1 {[%clk 0:00:08.4]} 54... Qf3+ {[%clk 0:00:07.9]} 55. Ke1
{[%clk 0:00:08.8]} 55... Kg5 {[%clk 0:00:08]} 56. Qg1+ {[%clk 0:00:08.1]} 56...
Kf5 {[%clk 0:00:07.3]} 57. Qf2 {[%clk 0:00:07.7]} 57... Qxf2+ {[%clk 0:00:05.7]}
58. Kxf2 {[%clk 0:00:08.6]} 58... Nf4 {[%clk 0:00:06.1]} 59. Ke3 {[%clk
0:00:08.5]} 59... Nd5+ {[%clk 0:00:06.2]} 60. Kd3 {[%clk 0:00:08.8]} 60... e4+
{[%clk 0:00:06.6]} 61. Ke2 {[%clk 0:00:08.2]} 61... Nb6 {[%clk 0:00:05.3]} 62.
b3 {[%clk 0:00:08]} 62... Nd5 {[%clk 0:00:05.2]} 63. c4 {[%clk 0:00:08.1]} 63...
Nb4 {[%clk 0:00:05.6]} 64. Ke3 {[%clk 0:00:07.8]} 64... Ke5 {[%clk 0:00:06.2]}
65. Ke2 {[%clk 0:00:07.8]} 65... Kd4 {[%clk 0:00:06.6]} 66. Kd2 {[%clk
0:00:08.5]} 66... e3+ {[%clk 0:00:06.6]} 67. Ke2 {[%clk 0:00:08.9]} 67... Nd3
{[%clk 0:00:07.1]} 68. c5 {[%clk 0:00:07.2]} 68... Nxc5 {[%clk 0:00:05.9]} 69.
b4 {[%clk 0:00:07.8]} 69... Ne4 {[%clk 0:00:04.8]} 70. b5 {[%clk 0:00:07.9]}
70... Nc3+ {[%clk 0:00:05.5]} 71. Ke1 {[%clk 0:00:08.3]} 71... Nxb5 {[%clk
0:00:06.4]} 0-1

[Event "*** SCC Grand Prix: Titled Tuesday Blitz"]
[Site "Chess.com"]
[Date "2020.10.06"]
[Round "8"]
[White "zubridis"]
[Black "Korchmar_Vasiliy"]
[Result "0-1"]
[WhiteElo "2470"]
[BlackElo "2581"]
[TimeControl "180+1"]
[EndTime "11:37:25 PDT"]
[Termination "Korchmar_Vasiliy won on time"]

1. e4 {[%clk 0:03:00.9]} 1... c5 {[%clk 0:03:00.1]} 2. d4 {[%clk 0:02:59.3]}
2... cxd4 {[%clk 0:02:59.5]} 3. c3 {[%clk 0:02:59.3]} 3... dxc3 {[%clk
0:03:00.4]} 4. Nxc3 {[%clk 0:02:59.5]} 4... Nc6 {[%clk 0:03:01]} 5. Nf3 {[%clk
0:02:59.4]} 5... d6 {[%clk 0:03:01.5]} 6. Bc4 {[%clk 0:02:59.2]} 6... e6 {[%clk
0:03:02.1]} 7. O-O {[%clk 0:02:58.7]} 7... Nf6 {[%clk 0:03:02.7]} 8. Qe2 {[%clk
0:02:57.2]} 8... Be7 {[%clk 0:03:03.2]} 9. Rd1 {[%clk 0:02:56.3]} 9... e5 {[%clk
0:03:03.8]} 10. Be3 {[%clk 0:02:50.4]} 10... O-O {[%clk 0:03:03.8]} 11. b4
{[%clk 0:02:43.6]} 11... Bg4 {[%clk 0:03:02.9]} 12. h3 {[%clk 0:02:34.2]} 12...
Bh5 {[%clk 0:03:02.1]} 13. a3 {[%clk 0:02:31.6]} 13... Rc8 {[%clk 0:02:59.1]}
14. g4 {[%clk 0:02:29.3]} 14... Bg6 {[%clk 0:02:58.8]} 15. Bd3 {[%clk 0:02:15]}
15... Nxb4 {[%clk 0:02:38.2]} 16. axb4 {[%clk 0:02:13.7]} 16... Rxc3 {[%clk
0:02:38.7]} 17. Bxa7 {[%clk 0:01:53.6]} 17... d5 {[%clk 0:01:33.3]} 18. Nxe5
{[%clk 0:01:48.8]} 18... Bxe4 {[%clk 0:01:27.2]} 19. Bd4 {[%clk 0:01:37]} 19...
Rc8 {[%clk 0:01:22]} 20. f3 {[%clk 0:01:33.7]} 20... Bxd3 {[%clk 0:01:20.1]} 21.
Nxd3 {[%clk 0:01:34.6]} 21... Re8 {[%clk 0:01:18.8]} 22. Qf2 {[%clk 0:01:32.9]}
22... Bd6 {[%clk 0:01:17.5]} 23. Re1 {[%clk 0:01:26.3]} 23... Nd7 {[%clk
0:01:07.1]} 24. Rxe8+ {[%clk 0:01:18.8]} 24... Qxe8 {[%clk 0:01:08]} 25. Re1
{[%clk 0:01:18.2]} 25... Qd8 {[%clk 0:01:08.4]} 26. Kg2 {[%clk 0:01:15.9]} 26...
Nf8 {[%clk 0:01:07.5]} 27. Bc5 {[%clk 0:01:09.2]} 27... Ne6 {[%clk 0:01:06.3]}
28. f4 {[%clk 0:01:03.2]} 28... Bxc5 {[%clk 0:00:58.1]} 29. bxc5 {[%clk
0:01:04.1]} 29... d4 {[%clk 0:00:58.5]} 30. f5 {[%clk 0:01:02.4]} 30... Nxc5
{[%clk 0:00:56.1]} 31. Nxc5 {[%clk 0:01:02]} 31... Rxc5 {[%clk 0:00:57]} 32.
Qxd4 {[%clk 0:01:00]} 32... Rc2+ {[%clk 0:00:42]} 33. Kf3 {[%clk 0:00:55.8]}
33... Qc8 {[%clk 0:00:41.7]} 34. Qa4 {[%clk 0:00:45]} 34... Rc6 {[%clk
0:00:20.4]} 35. Qe4 {[%clk 0:00:40.9]} 35... Rc3+ {[%clk 0:00:12.5]} 36. Kg2
{[%clk 0:00:38.3]} 36... h5 {[%clk 0:00:11]} 37. g5 {[%clk 0:00:35.4]} 37...
Rc2+ {[%clk 0:00:04.7]} 38. Kh1 {[%clk 0:00:33.8]} 38... Qc6 {[%clk 0:00:04.3]}
39. g6 {[%clk 0:00:26.5]} 39... fxg6 {[%clk 0:00:02.5]} 40. fxg6 {[%clk
0:00:27.4]} 40... Rc1 {[%clk 0:00:02.5]} 41. Kh2 {[%clk 0:00:26.8]} 41... Qxe4
{[%clk 0:00:01.9]} 42. Rxe4 {[%clk 0:00:26]} 42... Kf8 {[%clk 0:00:02.7]} 43.
Rf4+ {[%clk 0:00:25.8]} 43... Kg8 {[%clk 0:00:02]} 44. Rd4 {[%clk 0:00:22.4]}
44... Kf8 {[%clk 0:00:02]} 45. Rd7 {[%clk 0:00:20.3]} 45... Rc6 {[%clk 0:00:02]}
46. Rf7+ {[%clk 0:00:19.5]} 46... Kg8 {[%clk 0:00:02.4]} 47. Rxb7 {[%clk
0:00:19.8]} 47... Rxg6 {[%clk 0:00:03]} 48. h4 {[%clk 0:00:19.5]} 48... Rh6
{[%clk 0:00:03.3]} 49. Kg3 {[%clk 0:00:18.6]} 49... Kh7 {[%clk 0:00:04.2]} 50.
Kf4 {[%clk 0:00:18.3]} 50... Rg6 {[%clk 0:00:05.1]} 51. Kf3 {[%clk 0:00:13.5]}
51... Kh6 {[%clk 0:00:04.1]} 52. Rb4 {[%clk 0:00:11.8]} 52... Rg1 {[%clk
0:00:04]} 53. Kf2 {[%clk 0:00:10.8]} 53... Rg4 {[%clk 0:00:01.9]} 54. Rb6+
{[%clk 0:00:06.2]} 54... g6 {[%clk 0:00:02.2]} 55. Rb7 {[%clk 0:00:06.1]} 55...
Rxh4 {[%clk 0:00:02.5]} 56. Kf3 {[%clk 0:00:06.9]} 56... Rh3+ {[%clk 0:00:02.7]}
57. Kf4 {[%clk 0:00:06.9]} 57... Rc3 {[%clk 0:00:03.5]} 58. Rd7 {[%clk
0:00:05.8]} 58... Rc4+ {[%clk 0:00:03.8]} 59. Kf3 {[%clk 0:00:05.5]} 59... Rc5
{[%clk 0:00:04.7]} 60. Rd6 {[%clk 0:00:05.5]} 60... Rf5+ {[%clk 0:00:05.1]} 61.
Kg3 {[%clk 0:00:04.9]} 61... Rg5+ {[%clk 0:00:06]} 62. Kh4 {[%clk 0:00:04.2]}
62... Rg4+ {[%clk 0:00:06.9]} 63. Kh3 {[%clk 0:00:04.3]} 63... Ra4 {[%clk
0:00:07.8]} 64. Rd5 {[%clk 0:00:03.1]} 64... Re4 {[%clk 0:00:07.1]} 65. Rd6
{[%clk 0:00:02.8]} 65... Re5 {[%clk 0:00:06.2]} 66. Rd4 {[%clk 0:00:02.2]} 66...
Kg5 {[%clk 0:00:06.6]} 67. Rd1 {[%clk 0:00:02.1]} 67... Re3+ {[%clk 0:00:06.4]}
68. Kg2 {[%clk 0:00:02.1]} 68... Kg4 {[%clk 0:00:06.7]} 69. Kf2 {[%clk
0:00:02.8]} 69... Re4 {[%clk 0:00:06.2]} 70. Kg2 {[%clk 0:00:02.9]} 70... g5
{[%clk 0:00:04.9]} 71. Rg1 {[%clk 0:00:01.7]} 71... Kf5 {[%clk 0:00:04.8]} 72.
Kf1 {[%clk 0:00:02.6]} 72... Rf4+ {[%clk 0:00:05.2]} 73. Ke2 {[%clk 0:00:02.8]}
73... Rg4 {[%clk 0:00:06.1]} 74. Rf1+ {[%clk 0:00:02]} 74... Rf4 {[%clk
0:00:06.6]} 75. Re1 {[%clk 0:00:02.8]} 75... Re4+ {[%clk 0:00:07.5]} 76. Kf1
{[%clk 0:00:01.8]} 76... Rxe1+ {[%clk 0:00:08.4]} 77. Kxe1 {[%clk 0:00:01.1]}
77... Kf4 {[%clk 0:00:09.3]} 78. Kf2 {[%clk 0:00:01]} 78... Kg4 {[%clk
0:00:10.2]} 0-1